bitfinex/quotes_SOLUSD_20240530
["timestamp","ask_amount","ask_price","bid_price","bid_amount"]
[1717075147945,2.199,168.26,168.19,62.1997]
[1717075148146,2.199,168.26,168.22,60.0]
[1717075148676,16.4339,168.34,168.25,60.0]
[1717075148677,2.1987,168.29,168.25,60.0]
[1717075148874,2.1987,168.28,168.25,60.0]
[1717075149036,2.1986,168.29,168.25,60.0]
[1717075149926,2.1987,168.28,168.25,60.0]
[1717075150244,2.1988,168.27,168.21,35.67]
[1717075150628,2.1988,168.27,168.21,37.8696]
[1717075150828,2.199,168.26,168.21,35.67]
[1717075151142,2.199,168.26,168.21,58.1632]
[1717075151544,4.3968,168.31,168.21,82.4932]
[1717075151740,2.1989,168.27,168.21,22.4932]
[1717075151928,20.4,168.33,168.25,22.4932]
[1717075152132,2.1983,168.31,168.26,60.0]
[1717075152556,2.1984,168.3,168.25,16.422]
[1717075152755,2.1985,168.29,168.25,22.4932]
[1717075153240,2.1985,168.29,168.25,6.0712]
[1717075154852,20.4,168.33,168.27,60.0]
[1717075155170,2.1984,168.31,168.28,60.0]
[1717075155743,2.1982,168.32,168.28,60.0]
[1717075156060,2.1983,168.31,168.26,6.4262]
[1717075156256,2.1983,168.31,168.26,62.1989]
[1717075156457,2.1983,168.31,168.28,60.0]
[1717075156835,20.4,168.33,168.28,60.0]
[1717075157055,2.1981,168.33,168.28,62.1986]
[1717075157451,2.1979,168.34,168.3,60.0]
[1717075158160,2.1981,168.33,168.28,95.67]
[1717075158350,2.1981,168.32,168.28,95.67]
[1717075158531,10.9892,168.35,168.28,95.67]
[1717075159037,2.1985,168.3,168.25,62.1989]
[1717075159249,2.1983,168.31,168.25,97.8689]
[1717075159445,2.1983,168.31,168.26,2.1989]
[1717075159642,2.1982,168.32,168.27,62.1988]
[1717075159858,2.1982,168.32,168.29,60.0]
[1717075160076,2.1982,168.32,168.27,37.8688]
[1717075160244,19.7794,168.36,168.27,35.67]
[1717075160245,2.1983,168.31,168.27,35.67]
[1717075160654,2.1986,168.29,168.24,44.2844]
[1717075160865,2.1988,168.28,168.22,390.8994]
[1717075161193,2.1988,168.27,168.24,60.0]
[1717075161336,4.3967,168.31,168.24,60.0]
[1717075161337,2.1987,168.28,168.24,60.0]
[1717075161840,2.1987,168.28,168.23,2.1993]
[1717075162033,2.1988,168.27,168.22,390.8994]
[1717075162559,2.1987,168.28,168.22,388.7]
[1717075162867,2.1987,168.28,168.24,60.0]
[1717075163065,2.1988,168.27,168.24,60.0]
[1717075163280,2.1987,168.28,168.24,60.0]
[1717075163447,2.1986,168.29,168.26,60.0]
[1717075163766,2.1986,168.29,168.24,37.8692]
[1717075163767,2.1986,168.29,168.24,97.8692]
[1717075164160,2.1987,168.28,168.24,95.67]
[1717075164471,2.1987,168.28,168.24,35.67]
[1717075164665,2.1987,168.28,168.23,37.8693]
[1717075164845,2.1987,168.28,168.24,35.67]
[1717075165552,6.6011,168.33,168.26,2.1988]
[1717075165869,2.1986,168.29,168.24,35.67]
[1717075166168,2.1986,168.29,168.24,37.8692]
[1717075167065,2.1987,168.28,168.24,35.67]
[1717075167864,2.1994,168.23,168.17,390.9]
[1717075168093,2.1991,168.25,168.2,60.0]
[1717075168468,2.1991,168.25,168.2,62.1997]
[1717075169358,2.1991,168.25,168.22,60.0]
[1717075170260,2.1991,168.25,168.2,62.1997]
[1717075170775,2.1991,168.25,168.2,60.0]
[1717075170999,2.1991,168.25,168.2,62.1997]
[1717075171164,2.1991,168.25,168.19,97.8698]
[1717075171477,2.1991,168.25,168.21,60.0]
[1717075171868,2.199,168.26,168.21,62.1996]
[1717075172062,8.794,168.3,168.21,62.1996]
[1717075172063,2.1991,168.25,168.21,60.0]
[1717075172252,6.5295,168.26,168.16,60.0]
[1717075172464,2.1994,168.23,168.17,2.2]
[1717075172669,2.1992,168.24,168.18,2.2]
[1717075172870,2.1993,168.23,168.19,60.0]
[1717075173089,2.1993,168.23,168.17,97.8701]
[1717075173265,2.1995,168.22,168.16,2.2002]
[1717075173478,4.3982,168.25,168.15,62.2003]
[1717075173479,10.9962,168.24,168.15,62.2003]
[1717075173679,10.9962,168.24,168.17,60.0]
[1717075173978,2.1997,168.21,168.15,97.8703]
[1717075174289,2.1997,168.21,168.16,2.2002]
[1717075174511,2.1997,168.21,168.17,60.0]
[1717075174849,2.1997,168.21,168.16,2.2002]
[1717075175268,2.1997,168.21,168.17,60.0]
[1717075175776,2.1997,168.21,168.19,60.0]
[1717075175980,2.1995,168.22,168.19,60.0]
[1717075176228,6.5295,168.26,168.19,60.0]
[1717075176489,6.5295,168.26,168.21,60.0]
[1717075176490,2.1992,168.24,168.21,60.0]
[1717075176775,10.9276,168.26,168.17,97.87]
[1717075176955,2.1992,168.24,168.2,60.0]
[1717075177157,2.1991,168.25,168.2,2.1997]
[1717075177565,6.5295,168.26,168.18,95.67]
[1717075177778,21.9227,168.26,168.18,95.67]
[1717075177960,2.1995,168.22,168.16,2.2002]
[1717075178156,2.1996,168.21,168.16,2.2002]
[1717075178369,2.1995,168.22,168.18,60.0]
[1717075178570,2.1995,168.22,168.19,60.0]
[1717075178789,2.1995,168.22,168.17,2.2001]
[1717075178982,2.1995,168.22,168.18,60.0]
[1717075179788,2.1995,168.22,168.17,62.2001]
[1717075180285,2.1994,168.23,168.18,2.2]
[1717075180468,2.1994,168.23,168.19,60.0]
[1717075180872,6.5295,168.26,168.16,95.67]
[1717075181391,2.1993,168.23,168.18,2.1999]
[1717075181764,2.1995,168.22,168.17,2.2]
[1717075182383,2.1995,168.22,168.16,95.67]
[1717075182384,2.1994,168.23,168.18,2.2]
[1717075182585,2.1995,168.22,168.19,60.0]
[1717075182772,2.1994,168.23,168.19,60.0]
[1717075182984,2.1994,168.23,168.18,2.2]
[1717075183188,2.1994,168.23,168.19,60.0]
[1717075183737,2.1992,168.24,168.19,62.1998]
[1717075183898,2.1988,168.27,168.22,60.0]
[1717075184204,2.1987,168.28,168.23,2.1993]
[1717075184692,6.5126,168.28,168.22,60.0]
[1717075184874,6.1614,168.28,168.22,60.0]
[1717075185068,10.5588,168.28,168.2,60.0]
[1717075185269,2.1991,168.25,168.2,62.1997]
[1717075186083,10.5588,168.28,168.2,60.0]
[1717075186291,2.1991,168.25,168.2,60.0]
[1717075186590,2.1989,168.27,168.22,62.1994]
[1717075187870,2.1989,168.26,168.22,60.0]
[1717075188890,2.1989,168.27,168.22,62.1994]
[1717075189096,2.1989,168.26,168.22,62.1994]
[1717075189399,2.1989,168.27,168.22,62.1994]
[1717075190498,2.199,168.26,168.22,60.0]
[1717075190797,2.199,168.26,168.21,2.1996]
[1717075190970,2.199,168.26,168.22,60.0]
[1717075191292,2.1989,168.27,168.22,62.1994]
[1717075194679,2.1989,168.26,168.22,62.1994]
[1717075195187,2.1989,168.26,168.22,2.1994]
[1717075195445,2.1989,168.26,168.21,2.1996]
[1717075196290,2.1988,168.27,168.22,2.1994]
[1717075196592,2.199,168.26,168.22,2.1994]
[1717075196889,2.1991,168.25,168.21,2.1995]
[1717075197097,2.1989,168.26,168.23,60.0]
[1717075197301,2.1988,168.27,168.23,60.0]
[1717075198903,2.199,168.26,168.23,60.0]
[1717075200093,2.1989,168.27,168.23,60.0]
[1717075200502,2.1989,168.26,168.23,60.0]
[1717075200714,38.31803901,168.32,168.23,60.0]
[1717075200715,33.6593,168.32,168.23,60.0]
[1717075200971,2.1986,168.29,168.25,62.199]
[1717075201287,6.8,168.26,168.25,62.199]
[1717075202012,2.1985,168.3,168.27,60.0]
[1717075202199,6.8,168.28,168.27,60.0]
[1717075203280,4.3956,168.35,168.29,60.0]
[1717075203478,13.1851,168.37,168.29,60.0]
[1717075203479,6.8,168.3,168.29,60.0]
[1717075203878,6.8,168.3,168.29,62.1985]
[1717075204313,2.1979,168.34,168.31,60.0]
[1717075204605,6.6428,168.36,168.31,60.0]
[1717075204606,6.8,168.32,168.31,60.0]
[1717075204805,8.9981,168.32,168.28,95.67]
[1717075204978,10.9886,168.36,168.28,95.67]
[1717075204979,6.8,168.29,168.28,97.8687]
[1717075205477,6.8,168.29,168.26,60.0]
[1717075205684,6.8,168.27,168.26,60.0]
[1717075205987,6.8,168.27,168.26,62.1989]
[1717075206179,6.8,168.27,168.26,60.0]
[1717075206384,13.0405,168.27,168.15,4.76650775]
[1717075206590,6.8,168.17,168.14,111.495]
[1717075206784,6.8,168.16,168.15,41.9807]
[1717075207022,6.8,168.17,168.15,41.9807]
[1717075207184,6.8,168.17,168.16,2.2002]
[1717075208299,2.1995,168.22,168.16,2.2002]
[1717075209207,2.1995,168.22,168.14,111.495]
[1717075209208,2.1993,168.23,168.18,60.0]
[1717075209394,2.1992,168.24,168.18,62.1999]
[1717075209589,2.1994,168.23,168.17,2.2001]
[1717075209797,2.1995,168.22,168.17,2.2001]
[1717075210088,2.1996,168.21,168.16,2.2002]
[1717075210292,2.1995,168.22,168.16,2.2002]
[1717075210684,2.1995,168.22,168.17,62.2001]
[1717075211019,2.1995,168.22,168.17,60.0]
[1717075211182,2.1995,168.22,168.17,62.2001]
[1717075213214,2.1994,168.23,168.18,2.2]
[1717075213395,2.1994,168.23,168.17,62.2001]
[1717075213706,2.1995,168.22,168.17,62.2001]
[1717075215451,2.1995,168.22,168.17,2.2001]
[1717075215578,10.9957,168.25,168.15,95.67]
[1717075215907,2.1996,168.21,168.17,60.0]
[1717075216118,2.1996,168.21,168.16,2.2002]
[1717075216322,2.1996,168.21,168.17,60.0]
[1717075216884,2.1995,168.22,168.17,62.2001]
[1717075218401,4.3986,168.24,168.17,62.2001]
[1717075218715,2.1996,168.21,168.17,60.0]
[1717075221608,2.1996,168.21,168.16,2.2002]
[1717075221820,6.598,168.24,168.14,60.0]
[1717075222030,2.1999,168.19,168.14,62.2004]
[1717075222914,2.1999,168.19,168.15,2.2004]
[1717075223828,2.2003,168.16,168.11,394.9477]
[1717075224118,2.2003,168.16,168.09,40.0723]
[1717075224119,2.2005,168.15,168.09,97.871]
[1717075224416,2.2005,168.15,168.1,2.201]
[1717075224609,22.6001,168.17,168.12,2.2007]
[1717075224807,2.2003,168.16,168.11,2.2008]
[1717075225309,2.2004,168.15,168.11,2.2008]
[1717075225514,2.2005,168.14,168.09,2.2011]
[1717075225821,2.2005,168.14,168.07,95.67]
[1717075226038,2.2005,168.14,168.09,2.2011]
[1717075226617,2.2004,168.15,168.09,60.0]
[1717075226818,2.2006,168.14,168.09,60.0]
[1717075227333,2.2006,168.14,168.1,2.201]
[1717075227539,2.2006,168.14,168.07,95.67]
[1717075228030,2.2006,168.14,168.09,2.2011]
[1717075228238,2.2006,168.14,168.1,2.201]
[1717075228415,6.81,168.11,168.1,2.201]
[1717075228736,6.81,168.11,168.09,2.2011]
[1717075228904,6.81,168.1,168.09,2.2011]
[1717075229605,6.81,168.1,168.09,2.2012]
[1717075230118,6.81,168.1,168.07,60.0]
[1717075230448,13.62,168.08,168.03,60.0]
[1717075230736,9.0113,168.08,168.04,2.2018]
[1717075231097,6.81,168.08,168.04,2.2018]
[1717075231310,9.0117,168.05,168.0,2.2022]
[1717075231549,6.81,168.03,167.99,2.2024]
[1717075231738,6.81,168.03,167.97,0.8289829]
[1717075231905,9.0119,168.03,167.97,3.0316829]
[1717075232421,2.2019,168.04,167.99,2.2025]
[1717075233226,2.2019,168.04,167.98,2.2026]
[1717075233538,2.2018,168.04,167.98,2.2026]
[1717075233742,2.2019,168.03,167.98,2.2026]
[1717075234037,2.2019,168.04,167.99,2.2025]
[1717075235120,2.2019,168.03,167.99,2.2025]
[1717075235428,2.2019,168.03,167.97,0.8289829]
[1717075235832,2.2019,168.03,167.97,3.0316829]
[1717075236122,2.2019,168.03,167.97,0.8289829]
[1717075237421,30.15733466,168.03,167.97,0.8289829]
[1717075239013,23.55143466,168.03,167.97,0.8289829]
[1717075239222,8.5748,168.03,167.97,0.8289829]
[1717075239411,2.2019,168.03,167.97,3.0316829]
[1717075239608,2.2019,168.04,167.97,60.8289829]
[1717075239809,12.8059,168.07,167.97,60.8289829]
[1717075239810,6.2014,168.07,167.97,60.8289829]
[1717075240033,2.2019,168.04,167.99,2.2024]
[1717075240415,2.2019,168.03,167.99,2.2024]
[1717075240814,2.2018,168.04,168.0,60.0]
[1717075241527,2.2018,168.04,167.99,2.2024]
[1717075241734,2.2018,168.04,168.0,60.0]
[1717075242209,2.2019,168.03,168.0,60.0]
[1717075242810,2.2019,168.03,167.98,62.2025]
[1717075243025,2.2019,168.03,168.0,60.0]
[1717075245315,2.2019,168.03,167.98,60.0]
[1717075245727,2.2019,168.03,167.98,62.2026]
[1717075246238,2.2019,168.03,167.97,3.0316829]
[1717075246616,2.2019,168.03,167.97,0.8289829]
[1717075247126,2.2019,168.03,167.97,3.0316829]
[1717075247845,2.2019,168.03,167.97,0.8289829]
[1717075248176,2.2019,168.03,167.98,2.2025]
[1717075248939,2.2019,168.03,167.97,3.0316829]
[1717075249729,2.2019,168.03,167.98,62.2026]
[1717075254341,9.0219,168.03,167.98,62.2026]
[1717075254527,2.2019,168.03,167.99,2.2024]
[1717075254739,9.0219,168.03,167.99,2.2024]
[1717075255334,9.0219,168.03,167.98,62.2026]
[1717075255847,9.0219,168.03,167.98,60.0]
[1717075256237,9.0219,168.03,167.98,62.2026]
[1717075257934,9.0219,168.03,167.98,60.0]
[1717075258147,6.0843,168.03,167.87,60.0]
[1717075258343,6.82,167.89,167.88,21.4908]
[1717075259935,6.82,167.89,167.88,21.37657]
[1717075260247,2.2034,167.93,167.88,21.37657]
[1717075261457,2.2034,167.93,167.88,23.58047]
[1717075262852,2.2032,167.94,167.88,23.58047]
[1717075263375,2.2033,167.93,167.88,23.58047]
[1717075264067,2.2033,167.93,167.88,17.5325]
[1717075264267,2.2033,167.93,167.89,6.6207]
[1717075264467,4.4058,167.96,167.85,41.7688]
[1717075264783,2.2035,167.91,167.86,2.2041]
[1717075265004,2.2035,167.91,167.86,23.4929]
[1717075265164,2.2035,167.91,167.87,6.2807]
[1717075265541,2.2035,167.91,167.87,8.4847]
[1717075265872,2.2034,167.92,167.88,2.2039]
[1717075266547,2.2033,167.93,167.88,2.2039]
[1717075266743,2.2033,167.93,167.88,8.4846]
[1717075266954,4.4061,167.95,167.88,8.4846]
[1717075266955,2.2034,167.92,167.88,8.4846]
[1717075267176,2.2034,167.92,167.88,24.3543]
[1717075267462,2.2033,167.93,167.89,8.4845]
[1717075267863,2.2033,167.93,167.89,25.1148]
[1717075268196,4.4056,167.97,167.89,25.1147]
[1717075268388,2.2032,167.94,167.89,25.1147]
[1717075268663,2.203,167.95,167.9,62.2036]
[1717075269004,2.2028,167.97,167.92,2.2033]
[1717075269174,2.2029,167.96,167.92,8.3201]
[1717075269971,2.2029,167.96,167.92,6.1167]
[1717075270273,2.203,167.95,167.92,6.1167]
[1717075270881,2.2029,167.96,167.92,6.1167]
[1717075271072,2.2029,167.96,167.92,8.32]
[1717075272760,2.2029,167.96,167.92,8.3201]
[1717075273564,2.2029,167.96,167.92,24.261]
[1717075273766,2.2028,167.97,167.93,23.1077]
[1717075273961,2.2028,167.97,167.93,25.3109]
[1717075274465,8.8104,168.0,167.96,2.2028]
[1717075274664,2.2023,168.0,167.96,2.2028]
[1717075274872,2.2023,168.01,167.96,8.5074]
[1717075275208,2.2021,168.02,167.98,2.2026]
[1717075275865,2.2021,168.02,167.97,6.3046]
[1717075276196,2.2021,168.02,167.94,71.0154]
[1717075276197,2.202,168.03,167.99,2.2024]
[1717075276370,2.202,168.03,167.99,8.3904]
[1717075276568,20.47,168.04,168.0,6.188]
[1717075277476,2.202,168.03,168.0,6.188]
[1717075277675,20.47,168.04,168.0,6.188]
[1717075277860,22.6718,168.04,168.0,6.188]
[1717075278307,2.2018,168.04,168.0,22.8278]
[1717075278570,2.2019,168.03,168.0,22.8278]
[1717075279343,13.2113,168.05,168.0,18.8421]
[1717075279471,13.2113,168.05,168.01,6.0495]
[1717075279766,11.0096,168.05,168.01,8.2516]
[1717075280266,11.0096,168.05,167.97,11.0134]
[1717075280267,11.0096,168.05,168.03,6.0495]
[1717075280456,2.2013,168.08,168.04,6.0495]
[1717075280661,2.2013,168.08,168.04,24.8684]
[1717075280880,2.2014,168.07,168.04,22.6666]
[1717075281088,2.2014,168.07,168.03,2.2019]
[1717075281392,2.2016,168.06,168.0,66.3705]
[1717075281596,21.57363466,168.14,168.0,60.0]
[1717075281801,20.47,168.04,167.98,6.3705]
[1717075282082,6.1826,168.09,167.96,6.1169]
[1717075282083,2.2025,167.99,167.96,6.1169]
[1717075282329,2.2027,167.97,167.93,23.4834]
[1717075282497,6.82,167.94,167.93,23.4834]
[1717075282674,6.82,167.94,167.93,21.2803]
[1717075283763,6.82,167.94,167.93,23.4835]
[1717075283975,2.2026,167.98,167.91,60.0]
[1717075283976,6.6079,167.98,167.91,60.0]
[1717075284291,2.2031,167.95,167.91,60.0]
[1717075286670,2.203,167.95,167.91,60.0]
[1717075286881,2.203,167.95,167.91,66.1603]
[1717075287174,24.8754,167.98,167.92,6.1603]
[1717075287490,2.2029,167.96,167.92,21.3121]
[1717075287691,2.2029,167.96,167.92,23.5155]
[1717075288293,2.2029,167.96,167.92,21.3121]
[1717075288867,2.2029,167.96,167.92,23.5155]
[1717075289066,2.2029,167.96,167.92,21.3121]
[1717075289281,2.203,167.95,167.92,21.3121]
[1717075289483,2.203,167.95,167.92,6.1603]
[1717075290398,20.47,167.98,167.92,6.1603]
[1717075290399,2.2029,167.96,167.92,6.1603]
[1717075290568,2.2029,167.96,167.93,6.4985]
[1717075290929,2.2029,167.96,167.93,66.4985]
[1717075291167,2.2026,167.98,167.94,2.2031]
[1717075291400,2.2026,167.98,167.94,8.2236]
[1717075291803,2.2026,167.98,167.94,6.0205]
[1717075292009,2.2028,167.97,167.94,6.0205]
[1717075294087,2.2029,167.96,167.94,6.0205]
[1717075294901,2.2028,167.97,167.95,60.0]
[1717075296108,4.4043,168.02,167.95,81.8498]
[1717075296355,2.2025,167.99,167.96,6.5898]
[1717075296502,2.2025,167.99,167.96,21.8498]
[1717075298824,2.2022,168.01,167.98,23.179]
[1717075299831,4.4037,168.04,167.98,23.179]
[1717075300128,2.2021,168.02,167.98,23.179]
[1717075300302,2.2021,168.02,167.98,25.3816]
[1717075300697,2.202,168.03,167.98,23.179]
[1717075300932,2.202,168.03,167.99,8.3149]
[1717075301108,2.2019,168.04,167.99,68.3149]
[1717075301430,2.2019,168.04,168.0,8.3147]
[1717075301639,2.2019,168.04,168.0,23.4837]
[1717075302010,2.2019,168.04,168.0,21.2814]
[1717075302221,4.4032,168.06,168.01,66.3446]
[1717075302432,2.2019,168.04,168.01,66.3446]
[1717075302732,2.2017,168.05,168.02,6.1017]
[1717075302910,2.2018,168.04,168.02,6.1017]
[1717075304342,6.81,168.03,168.02,6.1017]
[1717075304508,2.2015,168.07,168.03,62.2019]
[1717075304713,6.81,168.04,168.03,84.8487]
[1717075305956,2.2013,168.08,168.05,6.3688]
[1717075306236,2.2014,168.07,168.05,6.3688]
[1717075306416,2.2013,168.08,168.05,6.3688]
[1717075307236,2.2012,168.09,168.05,6.3688]
[1717075307440,2.2012,168.09,168.05,22.2942]
[1717075307844,2.2013,168.08,168.05,22.2942]
[1717075308142,2.2012,168.09,168.05,22.2942]
[1717075308843,2.2013,168.08,168.05,22.2942]
[1717075309419,4.402,168.11,168.05,22.2942]
[1717075309420,2.2012,168.09,168.05,6.3688]
[1717075309624,2.2012,168.09,168.05,8.5704]
[1717075309840,2.2012,168.09,168.05,6.3688]
[1717075310043,2.2013,168.08,168.05,6.3688]
[1717075310342,2.2015,168.07,168.03,2.2019]
[1717075310837,2.2015,168.07,168.02,24.7337]
[1717075311029,2.2015,168.07,168.03,8.7135]
[1717075311537,2.2013,168.08,168.03,8.7135]
[1717075313135,2.2013,168.08,168.04,2.2018]
[1717075315632,2.2012,168.09,168.04,2.2018]
[1717075315844,2.2012,168.09,168.04,8.7329]
[1717075316031,2.2012,168.09,168.05,60.0]
[1717075316247,2.2013,168.08,168.05,60.0]
[1717075318352,2.2012,168.09,168.05,62.2017]
[1717075318550,2.2012,168.09,168.05,60.0]
[1717075320058,2.2013,168.08,168.05,60.0]
[1717075320353,2.2014,168.07,168.04,6.5311]
[1717075320558,2.2013,168.08,168.03,62.2019]
[1717075320749,2.2013,168.08,168.04,2.2018]
[1717075322151,2.2014,168.07,168.03,62.2019]
[1717075322335,4.4021,168.1,168.03,62.2019]
[1717075322645,2.2014,168.08,168.03,62.2019]
[1717075323031,2.2014,168.08,168.04,2.2018]
[1717075324731,2.2012,168.09,168.04,2.2018]
[1717075325730,2.2013,168.08,168.04,2.2018]
[1717075326239,11.0048,168.11,168.03,62.2019]
[1717075326653,2.2014,168.08,168.04,2.2018]
[1717075326833,2.2012,168.09,168.04,2.2018]
[1717075327440,2.2013,168.08,168.04,2.2018]
[1717075328846,2.2012,168.09,168.04,2.2018]
[1717075329756,2.2013,168.08,168.04,2.2018]
[1717075330263,6.81,168.05,168.04,2.2018]
[1717075331763,6.81,168.06,168.04,2.2018]
[1717075331945,6.81,168.05,168.04,2.2018]
[1717075332374,2.2012,168.09,168.05,60.0]
[1717075332571,2.2012,168.09,168.05,62.2016]
[1717075332864,6.81,168.06,168.05,68.5899]
[1717075334956,6.81,168.06,168.05,8.5899]
[1717075335179,6.81,168.06,168.04,2.2018]
[1717075335483,6.81,168.05,168.04,2.2018]
[1717075335676,6.81,168.05,168.03,68.6125]
[1717075336380,6.81,168.05,168.04,2.2018]
[1717075337377,6.81,168.05,168.04,8.6947]
[1717075337677,6.81,168.05,168.04,2.2018]
[1717075343178,6.81,168.05,168.03,62.2019]
[1717075343985,2.2015,168.07,168.03,62.2019]
[1717075344186,6.6025,168.12,168.0,50.7952]
[1717075344187,6.81,168.04,168.0,66.3158]
[1717075344481,8.8058,168.07,167.99,2.2024]
[1717075344663,6.81,168.01,167.99,2.2024]
[1717075345194,6.81,168.0,167.96,66.5853]
[1717075345489,2.2022,168.02,167.97,2.2027]
[1717075345693,4.4035,168.05,167.97,2.2027]
[1717075345694,6.81,167.98,167.97,2.2027]
[1717075346778,6.81,167.99,167.98,2.2025]
[1717075347373,6.81,167.99,167.97,2.2027]
[1717075347689,6.81,167.98,167.97,2.2027]
[1717075347894,6.81,167.98,167.96,2.2028]
[1717075348114,6.81,167.97,167.94,60.0]
[1717075348311,6.81,167.97,167.95,2.2029]
[1717075348471,4.4043,168.02,167.94,2.2031]
[1717075348800,9.0124,168.0,167.95,2.2029]
[1717075349309,9.0124,168.0,167.96,2.2029]
[1717075349974,2.2025,167.99,167.94,62.2031]
[1717075350214,2.2026,167.98,167.94,62.2031]
[1717075351774,2.2025,167.99,167.94,62.2031]
[1717075353190,2.2026,167.98,167.94,2.2031]
[1717075353420,6.81,167.95,167.92,62.2033]
[1717075353593,6.81,167.93,167.91,2.2035]
[1717075353770,6.81,167.92,167.91,2.2035]
[1717075353966,2.203,167.95,167.9,2.2036]
[1717075354200,6.16993466,167.99,167.89,62.2038]
[1717075354201,6.81,167.91,167.89,62.2038]
[1717075354496,6.81,167.9,167.89,2.2038]
[1717075354998,4.4055,167.98,167.87,60.0]
[1717075354999,2.2031,167.95,167.91,60.0]
[1717075355304,6.81,167.92,167.91,60.0]
[1717075355485,2.2031,167.95,167.91,60.0]
[1717075355674,2.2028,167.97,167.93,60.0]
[1717075355877,6.81,167.94,167.93,62.2032]
[1717075356589,2.2028,167.97,167.93,60.0]
[1717075356891,27.24,168.0,167.93,60.0]
[1717075356892,2.2026,167.98,167.93,60.0]
[1717075357068,2.2025,167.99,167.94,2.203]
[1717075357273,6.81,167.95,167.94,2.203]
[1717075357779,2.2024,168.0,167.95,2.2029]
[1717075357986,13.2121,168.03,167.96,2.2028]
[1717075357987,4.404,168.03,167.96,2.2028]
[1717075358184,2.2023,168.0,167.95,62.203]
[1717075358386,2.2023,168.0,167.97,60.0]
[1717075361193,2.2022,168.01,167.97,60.0]
[1717075361389,2.2021,168.02,167.99,60.0]
[1717075362201,2.2022,168.01,167.97,60.0]
[1717075362397,2.2021,168.02,167.98,6.3752]
[1717075362599,2.202,168.03,167.98,8.5778]
[1717075363391,6.81,168.0,167.98,8.5778]
[1717075364014,2.2018,168.05,168.01,60.0]
[1717075366400,2.2019,168.04,168.01,60.0]
[1717075366700,8.8047,168.1,168.03,60.0]
[1717075366701,2.2017,168.06,168.03,60.0]
[1717075367046,6.81,168.04,168.03,60.0]
[1717075368200,2.2015,168.06,168.03,60.0]
[1717075368409,4.4029,168.07,167.99,2.2024]
[1717075368713,2.2021,168.02,167.98,60.0]
[1717075369135,2.2021,168.02,167.98,68.497]
[1717075369288,2.202,168.03,167.98,68.497]
[1717075369690,2.202,168.03,167.99,6.3496]
[1717075369888,2.202,168.03,168.0,60.0]
[1717075370389,6.6045,168.07,167.99,8.5521]
[1717075370390,2.2019,168.04,168.02,60.0]
[1717075370584,6.81,168.03,168.02,60.0]
[1717075371104,9.0119,168.03,168.02,60.0]
[1717075371424,6.81,168.03,168.02,60.0]
[1717075371988,2.2016,168.06,168.02,60.0]
[1717075372192,6.81,168.03,168.02,60.0]
[1717075373362,6.81,168.03,168.0,120.1659]
[1717075373514,6.81,168.03,168.01,2.2022]
[1717075373703,6.81,168.03,168.01,8.8269]
[1717075375306,6.81,168.03,168.02,62.2021]